Cogmind - Beta 15 @@@ ROGUE MODE // 2025.10.12 @ 14:42:40 Player: microsand Result: Destroyed by S-10 Pest with Light Assault Rifle Performance ------------- Evolutions (0) 0 Regions Visited (2) 400 Robots Destroyed (17) 85 Value Destroyed (388) 388 Prototype IDs (0) 0 Alien Tech Used (0) 0 Bonus (0) 0 TOTAL SCORE: 873 Bonus ------- None Cogmind --------- Core Integrity 0/250 Matter 270/300 Energy 49/100 System Corruption 0% Temperature Cool (4) Movement Flying (37) Location -10/Mines Parts ------- > --- POWER (1) -------- (None) > --- PROPULSION (2) --- Flight Unit Flight Unit > --- UTILITY (2) ------ Small Storage Unit > --- WEAPON (2) ------- (None) > --- INVENTORY (8) ---- Light Treads Light Treads Aluminum Leg Signal Interpreter Mining Laser Mining Laser Peak State ------------ > --- POWER ------------ Ion Engine > --- PROPULSION ------- Light Treads Light Treads > --- UTILITY ---------- Small Storage Unit Seismic Detector > --- WEAPON ----------- Small Laser Assault Rifle > --- INVENTORY -------- Mining Laser Mining Laser [Rating: 7] Favorites ----------- Power Ion Engine Engine Ion Engine Propulsion Light Treads Treads Light Treads Leg Aluminum Leg Flight Unit Flight Unit Utility Small Storage Unit Device Seismic Detector Storage Small Storage Unit Weapon Small Laser Energy Gun Small Laser Ballistic Gun Assault Rifle Build | -11 -10 -10 ------- Run | Yrd Mat Min Slots Evolved . | . . . Power . | . . . Propulsion . | . . . Utility . | . . . Weapon . | . . . Parts Attached 13 | 6 5 2 Power 1 | 1 . . Engine 1 | 1 . . Core . | . . . Reactor . | . . . Propulsion 8 | 2 4 2 Treads 2 | 2 . . Leg 2 | . 2 . Wheel . | . . . Hover . | . . . Flight 4 | . 2 2 Utility 2 | 1 1 . Device 1 | . 1 . Storage 1 | 1 . . Processor . | . . . Hackware . | . . . Protection . | . . . Artifact . | . . . Weapon 2 | 2 . . Energy Gun 1 | 1 . . Energy Cannon . | . . . Ballistic Gun 1 | 1 . . Ballistic Cannon . | . . . Launcher . | . . . Special Weapon . | . . . Impact Weapon . | . . . Slashing Weapon . | . . . Piercing Weapon . | . . . Special Melee Weapon . | . . . Unidentified Prototypes . | . . . Parts Lost 6 | . 2 4 Power 1 | . 1 . Propulsion 2 | . . 2 Utility 1 | . . 1 Weapon 2 | . 1 1 Highest Loss Streak 4 | . 2 4 To Critical Strikes . | . . . Average Backups 3 | 1 3 7 Power . | . . . Propulsion . | . . 4 Utility . | . . 1 Weapon 1 | 1 2 2 Tool/Special . | . . . Unused Backups 3 | . . 3 Power . | . . . Propulsion . | . . . Utility 1 | . . 1 Weapon 2 | . . 2 Tool/Special . | . . . Average Slot Usage (%) 90 | . 94 63 Engine 10 | . 11 . Treads 21 | . 24 . Leg 2 | . 2 . Flight 4 | . 1 26 Device 13 | . 13 12 Storage 14 | . 14 14 Energy Gun 13 | . 14 10 Ballistic Gun 10 | . 11 . Peak Build Rating 7 | 6 7 5 Average Rating 6 | 5 6 4 On Entrance 3 | . 6 5 Naked Turns . | . . . Heaviest Build 14 | 13 14 7 Greatest Support 40 | 40 40 8 Greatest Overweight (x) 1 | . . 1 Average Overweight (x) . | . . . Largest Inventory Capacity 8 | 8 8 8 Average Capacity 7 | 7 8 8 Most Carried 8 | 4 8 8 Average Carried 3 | 1 3 7 Final Capacity 8 | 8 8 8 Final Carried 8 | 3 8 6 Class Distribution -------------------- 100% | Mutant Dominant Class ---------------- Mutant | -10/Materials Mutant | -10/Mines Resources | -11 -10 -10 ----------- Run | Yrd Mat Min Matter Collected 444 | 271 173 . Remotely . | . . . Salvage Created 583 | 207 376 . Parts 38 | 21 17 . Haulers Intercepted . | . . . Recyclers Shooed 1 | 1 . . Parts Field Recycled . | . . . Retrieved Matter . | . . . Parts Self-Destructed . | . . . Prevented . | . . . Kills | -11 -10 -10 ------- Run | Yrd Mat Min Combat Hostiles Destroyed 9 | . 9 . Guns 9 | . 9 . Classes Destroyed 4 | 3 1 . Worker 2 | 2 . . Tunneler 5 | 5 . . Recycler 1 | 1 . . Grunt 9 | . 9 . Best Kill Streak 4 | 4 4 . Combat Bots Only 4 | . 4 . Max Kills in Single Turn 1 | 1 1 . Gunslinging . | . . . Exploded . | . . . Melee . | . . . Uniques/NPCs Destroyed . | . . . Combat | -11 -10 -10 -------- Run | Yrd Mat Min Hostile Shots Fired 96 | . 48 48 Missed 27 | . 13 14 Hits 69 | . 35 34 Projectile 69 | . 35 34 Damage Taken 783 | . 442 341 Core 257 | . 113 144 Absorbed by Shields . | . . . Core Remaining (%) 100 | 100 . . Volleys Fired 65 | 19 40 6 Largest 2 | 2 2 1 Hottest 60 | 60 60 40 Shots Fired 117 | 38 73 6 Gun 117 | 38 73 6 Cannon . | . . . Launcher . | . . . Special . | . . . Kinetic 54 | 19 35 . Thermal 63 | 19 38 6 Explosive . | . . . Electromagnetic . | . . . Robot Hit Streak 10 | 4 10 4 Robot Miss Streak 4 | 1 4 2 Penetration Max . | . . . Secondary Targets 1 | . 1 . Max Gunslinging Chain 1 | . 1 . Shots Hit Robots 80 | 24 52 4 Core Hits 32 | 9 22 1 Critical Kills . | . . . Critical Parts Destroyed . | . . . Critical Strikes . | . . . Melee Attacks . | . . . Impact . | . . . Slashing . | . . . Piercing . | . . . Sneak Attacks . | . . . Combat Hostiles . | . . . Follow-up Attacks . | . . . Damage Inflicted 971 | 293 634 44 Guns 968 | 293 631 44 Cannons . | . . . Explosions . | . . . Melee . | . . . Ramming 3 | . 3 . Kinetic 447 | 153 294 . Thermal 521 | 140 337 44 Explosive . | . . . Electromagnetic . | . . . Impact . | . . . Slashing . | . . . Piercing . | . . . Highest Corruption . | . . . Average Corruption . | . . . Corruption Purged . | . . . Corruption Blocked . | . . . Overload Shots . | . . . Overflow Damage . | . . . Projectiles . | . . . Explosions . | . . . Melee . | . . . Knockbacks . | . . . Impact . | . . . Kinetic . | . . . Secondary . | . . . Self-Inflicted Damage . | . . . Shots . | . . . Rammed . | . . . Targets Rammed 2 | . 2 . Kicked 2 | . 2 . Crushed . | . . . Highest Temperature 66 | . 66 30 Average Temperature 19 | . 19 21 Received Heat Transfer 372 | . 255 117 Siege Activations . | . . . Martial Activations . | . . . Shielding Activations . | . . . Robots Disrupted . | . . . Combat Hostiles . | . . . Robots Corrupted . | . . . Combat Hostiles . | . . . Parts Fried . | . . . Impact Corruptions . | . . . Robots Melted . | . . . Combat Hostiles . | . . . Parts Melted 1 | . 1 . Heat Transferred 1200 | 325 775 100 Parts Sabotaged . | . . . Parts Stolen . | . . . Parts Stripped . | . . . Power Chain Reactions . | . . . Alert | -11 -10 -10 ------- Run | Yrd Mat Min Maximum Alert Level . | . . . Low Security (%) 100 | 100 100 100 Level 1 . | . . . Level 2 . | . . . Level 3 . | . . . Level 4 . | . . . Level 5 . | . . . High Security . | . . . Max Security . | . . . Peak Influence 96 | 10 96 38 Initial 18 | . . 18 Average 19 | 2 24 15 Influence Increases 326 | 40 256 30 Destroy 0b10 Robot/C 180 | . 180 . Destroy 0b10 Robot/NC 40 | 40 . . Destroy Leader 50 | . 50 . Successful Hack 9 | . 9 . Destroy Structure 2 | . 2 . Partial Spotted 15 | . 15 . Lose Combat Pursuer 30 | . . 30 Influence Decreases 326 | 40 208 78 Entered New Map 30 | . . 30 Time Decay 256 | 40 188 28 Lost Part 40 | . 20 20 Squads Dispatched 2 | . 2 . Investigation . | . . . Extermination . | . . . Reinforcement 2 | . 2 . Assault . | . . . Garrison . | . . . Intercept . | . . . Searches Triggered . | . . . Construction Impeded . | . . . Haulers Reinforced . | . . . Active Scanning Responses . | . . . Cargo Convoy Interrupts . | . . . Stealth | -11 -10 -10 --------- Run | Yrd Mat Min Distress Signals 3 | . 3 . Communications Jammed . | . . . Distress Signals . | . . . Times Spotted 24 | . 17 7 Peak Tracking Total 5 | . 5 5 Tactical Retreats 1 | . . 1 Traps | -11 -10 -10 ------- Run | Yrd Mat Min Traps Triggered . | . . . Indirectly . | . . . Trap Hack Attempts . | . . . Triggered . | . . . Disarmed . | . . . Reprogrammed . | . . . Reused . | . . . Traps Extracted . | . . . Installed . | . . . Triggered . | . . . Machines | -11 -10 -10 ---------- Run | Yrd Mat Min Machines Disabled . | . . . Max in Single Turn . | . . . Machines Repaired . | . . . Machines Dismantled . | . . . Machines Sabotaged . | . . . Overloaded Fab Kills . | . . . Hacking | -11 -10 -10 --------- Run | Yrd Mat Min Machines Accessed 4 | . 4 . Terminals 4 | . 4 . Fabricators . | . . . Repair Stations . | . . . Recycling Units . | . . . Scanalyzers . | . . . Garrison Access . | . . . Total Hacks 10 | . 10 . Successful 2 | . 2 . Failed 8 | . 8 . Catastrophic 1 | . 1 . Database Lockouts . | . . . Manual 10 | . 10 . Terminals 10 | . 10 . Fabricators . | . . . Repair Stations . | . . . Recycling Units . | . . . Scanalyzers . | . . . Garrison Access . | . . . Terminal Hacks . | . . . Fabricator Hacks . | . . . Repair Station Hacks . | . . . Recycling Unit Hacks . | . . . Scanalyzer . | . . . Garrison Access Hacks . | . . . Unauthorized Hacks 2 | . 2 . Terminals 2 | . 2 . Botnet 2 | . 2 . Fabricators . | . . . Repair Stations . | . . . Recycling Units . | . . . Scanalyzers . | . . . Garrison Access . | . . . Data Cores Recovered . | . . . Used . | . . . Hacking Detections 3 | . 3 . Full Trace Events . | . . . Feedback Events . | . . . Feedback Blocked . | . . . Robot Schematics Acquired . | . . . Robots Built . | . . . Authchips . | . . . Time . | . . . Total Robot Build Rating . | . . . Part Schematics Acquired . | . . . Parts Built . | . . . Authchips . | . . . Time . | . . . Total Part Build Rating . | . . . Parts Repaired . | . . . Time . | . . . Parts Recycled . | . . . Recycled Matter . | . . . Retrieved Matter . | . . . Retrieved Components . | . . . Parts Scanalyzed . | . . . Part Schematics Acquired . | . . . Parts Damaged . | . . . Bothacking | -11 -10 -10 ------------ Run | Yrd Mat Min Used RIF Installer . | . . . Robots Hacked . | . . . Non-combat . | . . . Combat . | . . . Robot Hacks Applied . | . . . Relay Couplers Released . | . . . Fabnet Peak Effective % . | . . . Robots Rewired . | . . . Allies Hacked . | . . . Hacks Repelled . | . . . Allies | -11 -10 -10 -------- Run | Yrd Mat Min Total Allies . | . . . Largest Group . | . . . Highest-Rated Group . | . . . Highest-Rated Ally . | . . . Total Orders . | . . . Ally Attacks . | . . . Total Damage . | . . . Kills . | . . . Allies Corrupted . | . . . Allies Melted . | . . . Intel | -11 -10 -10 ------- Run | Yrd Mat Min Active Infowar (turns) 725 | . 659 66 Seismic 725 | . 659 66 Robot Analysis Total . | . . . Derelict Logs Recovered . | . . . Drone Launches . | . . . Drone Recoveries . | . . . Exploration | -11 -10 -10 ------------- Run | Yrd Mat Min Turns Passed 980 | 221 687 72 Spaces Moved 650 | 101 408 141 Core 10 | 10 . . Treads 356 | 91 265 . Legs 42 | . 42 . Wheels . | . . . Hover . | . . . Flight 242 | . 101 141 Fastest Speed 37 | 50 37 37 Average Speed 110 | 149 125 39 Slowest Speed 160 | 160 160 120 Overloaded Moves . | . . . Propulsion Burnouts . | . . . Robots Hopped 6 | . . 6 Potential Cave-ins . | . . . Cave-ins Triggered . | . . . Exploration Rate (%) 38 | 8 73 35 Regions Visited 2 Branch Regions 1 Pre-discovered Areas . | . . . Known Exits Taken . | . . . Unknown Exits Taken 2 | 1 1 . Scrap Searched . | . . . Spaces Dug . | . . . Terrain Destroyed . | . . . Melee . | . . . Projectile . | . . . AOE . | . . . Terrain Rammed . | . . . Walls Destroyed . | . . . Machines Disabled . | . . . Actions | -11 -10 -10 --------- Run | Yrd Mat Min Total 785 | 134 507 144 Wait 45 | . 45 . Move 636 | 100 407 129 Hop 6 | . . 6 Pick Up 16 | 9 7 . Fast Attach . | . . . Attach 9 | 6 1 2 Detach . | . . . Swap 5 | . 4 1 Drop 1 | . 1 . Fire 65 | 19 40 6 Melee . | . . . Ram . | . . . Kick 2 | . 2 . Crush . | . . . Escape Stasis . | . . . Rewire . | . . . Trap . | . . . Miscellaneous . | . . . Route ------- -11/Scrapyard -10/Materials (discovered 2 exits: [*Mat] / [*Min]) -10/Mines (discovered 2 exits: [*Mat x2]) History --------- Turn | Location | Event 4 | -11/Scrapyard | Discovered new exit (range 14) 222 | -11/Scrapyard | Entered Materials 309 | -10/Materials | Build established: Mutant 722 | -10/Materials | Derelicts attacked the area 883 | -10/Materials | Discovered new exit (range 13) 899 | -10/Materials | Discovered new exit (range 16) 909 | -10/Materials | Entered Mines 911 | -10/Mines | Core integrity fell below 50% 922 | -10/Mines | Discovered new exit (range 9) 953 | -10/Mines | Discovered new exit (range 13) 974 | -10/Mines | Core integrity fell below 20% 981 | -10/Mines | Destroyed by S-10 Pest with Light Assault Rifle Last Messages --------------- 00846_ Connecting with Terminal... 00848_ R-06 Scavenger collects Sml. Laser. 00849_ Kicked R-06 Scavenger out of the way. 00861_ Acquired Flight Unit. 00872_ Dropped Aluminum Leg. 00873_ Acquired Flight Unit. 00883_ EXIT=FOUND 00904_ K-01 Serf cleans the Neutrino Reactor. LOCATION=UNKNOWN GOAL=ESCAPE Something is scanning the area. 00922_ EXIT=FOUND 00925_ K-01 Serf collects debris. 00953_ EXIT=FOUND 00966_ Flight Unit destroyed. 00966_ Sml. Laser destroyed. 00970_ K-01 Serf collects debris. 00974_ Flight Unit destroyed. 00975_ Seismic Detector destroyed. Map ----- +----------------------------------------------------+ | ???????????????????????????????????????? | | ??????????????????????????????????????? | | #?????????????????????????????????????? | | #?????????????????????????????????????? | | #?????????????????????????????????????? | | #?????????????????????????????????????? | | #???###???????????????????????????????? | | #??# #???????????????????????????????? | | ### #???????????????????????????????? | | #???????????????????????????????? | | #???????????????????????????????? | | ?????????????????????????????????? | | ??????????????????????????????????? | | #????????????????????????????????????? | | #########????????????????????????????? | | #????????????????????##??????? | | #??????????????????? ##?????? | | ### #??????????????????? #?????? | | #?# #?????????????????? #?????? | | # ##?# #?????????????????# #??????? | | ######## #???????????????## #???????? | | ???### #?????????????## ????????? | | #?## ##???????????## ?????????? | | #?# ##??????????# ??????????? | | #?# #?????????## #???????????? | | #?## #?????????# @#????????????? | | ???## ##?????????# #????????????? | | ????## ##????????## #????????????? | | ?????# < ##???????# #????????????? | | ?????## ######??# #????????????? | | ?????## #??# #????#####???? | | ?????# #??#s ### #???? | | ?????# ###### #?##s """#???? | | ?????## ##????# ### g """#???? | | ??????#####?????# g ##### """#???? | | ????????????????#### s #???? #???? | | ???????????????????## ##?????######???? | | ????????????????????####???????????????? | | ???????????????????????????????????????? | | | | | | | | | | | | | | | | | | | | | | | +----------------------------------------------------+ Best States ------------- Heat Dissipation 25 Energy Generation 10 Energy Capacity 250 Matter Stores 300 Matter Capacity 300 Sight Range 16 Terrain Scan Density 10 Evasion (%) 62 Recoil Reduction 2 Item Schematics ----------------- None Robot Schematics ------------------ None Fabricated ------------ Nothing Repaired ---------- Nothing Alien Tech Used ----------------- None Achievements -------------- None Challenges ------------ None Game ------ Seed ShieldAlertBox Manual? 0 Play Time 00:07:15 Cumulative 20.3 hours Start 2025.10.12 @ 14:34:37 End 2025.10.12 @ 14:42:40 Sessions 1 Manual Loads 0 Difficulty Rogue Special Mode None Game No. 59 Rogue 59 Adventurer 0 Explorer 0 Win Type - Total 0 Types 0/0/0/0/0/0/0/0/0/0 Lore% 32 Gallery% 28 Achievement% 29 Wizard Run 0 Options --------- Layout 1 ASCII 0 Keyboard 0 Movement Numpad Keybinds 0 Fullscreen 1 Font 24/Smallcaps Map View 50x35 Zoom Use 0% Tactical HUD 1 Map Filters NONE Filters NONE Steam 1 RUN: 61308841-5076-4c85-8b0a-228ebe8fc914